bitfinex/quotes_BTCUSD_20240902
["timestamp","ask_amount","ask_price","bid_price","bid_amount"]
[1725270133806,0.0277991,58154.0,58153.0,1.042404]
[1725270137118,0.000816,58154.0,58153.0,0.320172]
[1725270139035,0.000816,58154.0,58153.0,0.560916]
[1725270140541,0.02779717,58154.0,58153.0,0.560916]
[1725270142257,0.02779717,58154.0,58153.0,0.80166]
[1725270144870,0.02779717,58154.0,58153.0,1.042404]
[1725270147367,0.000816,58154.0,58153.0,1.042404]
[1725270150554,0.02779529,58154.0,58153.0,1.042404]
[1725270150755,0.02779529,58154.0,58153.0,1.0433005]
[1725270151225,0.02779529,58154.0,58153.0,0.5618125]
[1725270151455,0.02779529,58154.0,58153.0,0.3900125]
[1725270151675,0.02779529,58154.0,58153.0,0.6307565]
[1725270151894,0.02779529,58154.0,58153.0,0.1492685]
[1725270153907,0.02779529,58154.0,58153.0,0.3900125]
[1725270154125,0.02779529,58154.0,58153.0,0.6307565]
[1725270155085,0.240695,58165.0,58154.0,0.1709]
[1725270155341,0.000816,58180.0,58168.0,0.606705]
[1725270155342,0.000816,58169.0,58168.0,0.606705]
[1725270155577,0.12283377,58192.0,58189.0,0.005]
[1725270155805,0.12283377,58192.0,58191.0,0.005]
[1725270156040,0.240588,58191.0,58185.0,0.005]
[1725270156261,0.38098667,58190.0,58189.0,0.005]
[1725270156711,0.120295,58190.0,58189.0,0.005]
[1725270157146,0.14766617,58190.0,58189.0,0.005]
[1725270158039,0.14766617,58190.0,58189.0,0.011]
[1725270158750,0.13957734,58192.0,58189.0,0.011]
[1725270159005,0.25987034,58192.0,58189.0,0.011]
[1725270159222,0.25987034,58192.0,58189.0,0.017]
[1725270159896,0.25987034,58192.0,58189.0,0.005]
[1725270160336,0.120295,58190.0,58189.0,0.007]
[1725270160559,1.67721124,58190.0,58189.0,0.007]
[1725270160775,1.67721124,58190.0,58177.0,0.005]
[1725270160776,0.120318,58179.0,58177.0,0.005]
[1725270161018,0.0445,58179.0,58177.0,0.005]
[1725270161225,0.12032,58178.0,58177.0,0.005]
[1725270161437,0.12032,58178.0,58167.0,0.005]
[1725270161438,0.17560724,58178.0,58167.0,0.005]
[1725270161673,0.25991834,58168.0,58167.0,0.005]
[1725270161898,0.13957734,58168.0,58167.0,0.005]
[1725270162110,0.25991834,58168.0,58167.0,0.005]
[1725270162339,0.13957734,58168.0,58167.0,0.005]
[1725270162819,0.16655546,58168.0,58167.0,0.005]
[1725270163263,0.16655546,58168.0,58167.0,0.01]
[1725270163933,0.16737046,58168.0,58167.0,0.01]
[1725270164165,0.16737046,58168.0,58167.0,0.014]
[1725270164640,0.16737046,58168.0,58167.0,0.009]
[1725270165111,0.16737046,58168.0,58167.0,0.013]
[1725270165362,0.13957734,58169.0,58167.0,0.013]
[1725270165832,0.13957734,58169.0,58167.0,0.009]
[1725270166283,0.13957734,58169.0,58167.0,0.011]
[1725270166499,0.13957734,58169.0,58167.0,0.009]
[1725270166722,0.13957734,58169.0,58167.0,0.01]
[1725270166944,0.13957734,58169.0,58167.0,0.006]
[1725270167176,0.13957734,58169.0,58167.0,0.008]
[1725270167634,0.13957734,58169.0,58167.0,0.006]
[1725270168063,0.13957734,58169.0,58167.0,0.009]
[1725270168288,0.13957734,58169.0,58168.0,0.0968]
[1725270168515,0.13957734,58169.0,58167.0,0.008]
[1725270168516,0.16655372,58169.0,58167.0,0.011]
[1725270168950,0.0445,58179.0,58167.0,0.011]
[1725270169177,0.005,58185.0,58167.0,0.011]
[1725270169178,0.02697714,58181.0,58178.0,0.005]
[1725270169408,0.02697714,58181.0,58180.0,0.125316]
[1725270169637,0.515016,58194.0,58183.0,0.125309]
[1725270169638,0.120291,58192.0,58183.0,0.125309]
[1725270169845,0.13957734,58191.0,58183.0,0.125309]
[1725270170067,0.13957734,58191.0,58186.0,0.005]
[1725270170305,0.000816,58194.0,58190.0,0.005]
[1725270170546,0.000816,58194.0,58191.0,0.001]
[1725270171233,0.000816,58194.0,58188.0,0.211898]
[1725270171467,0.004,58191.0,58188.0,0.211898]
[1725270171687,0.004,58191.0,58188.0,0.0916]
[1725270171924,0.004,58191.0,58190.0,0.120295]
[1725270172360,0.004,58191.0,58190.0,0.12373165]
[1725270172579,0.000816,58194.0,58188.0,0.0916]
[1725270172793,0.000816,58194.0,58188.0,0.0956]
[1725270173006,0.000816,58194.0,58191.0,0.001]
[1725270173437,0.000816,58194.0,58188.0,0.0916]
[1725270173942,0.000816,58194.0,58188.0,0.0926]
[1725270174632,0.000816,58194.0,58190.0,0.004]
[1725270174858,0.000816,58194.0,58188.0,0.0926]
[1725270175068,0.02778257,58194.0,58188.0,0.0926]
[1725270175290,0.02778257,58194.0,58188.0,0.0936]
[1725270175494,0.02778257,58194.0,58188.0,0.212899]
[1725270175717,0.02778257,58194.0,58188.0,0.0926]
[1725270175925,0.02778257,58194.0,58190.0,0.001]
[1725270176375,0.02778257,58194.0,58188.0,0.0916]
[1725270176583,0.14807057,58194.0,58190.0,0.001]
[1725270177213,0.121104,58194.0,58188.0,0.0926]
[1725270177637,0.121104,58194.0,58188.0,0.0936]
[1725270177851,0.000816,58194.0,58188.0,0.212898]
[1725270178085,0.000816,58194.0,58190.0,0.001]
[1725270178300,0.000816,58194.0,58190.0,0.00443692]
[1725270178523,0.000816,58194.0,58192.0,0.120289]
[1725270178740,0.000816,58194.0,58190.0,0.240589]
[1725270178968,0.000816,58194.0,58193.0,0.457767]
[1725270179187,0.000816,58194.0,58193.0,0.76891828]
[1725270179413,0.000816,58194.0,58193.0,0.52834028]
[1725270179856,0.000816,58194.0,58193.0,0.76891828]
[1725270180552,0.000816,58194.0,58193.0,0.76991828]
[1725270180991,0.02777932,58194.0,58193.0,0.76991828]
[1725270181204,0.02777932,58194.0,58193.0,0.77091828]
[1725270181698,0.000816,58194.0,58193.0,0.77091828]
[1725270182370,0.000816,58194.0,58193.0,1.11249628]
[1725270182592,0.000816,58194.0,58193.0,1.13449628]
[1725270182805,0.000816,58194.0,58193.0,1.14149628]
[1725270183250,0.000816,58194.0,58193.0,1.38207428]
[1725270183465,0.000816,58194.0,58193.0,1.38707428]
[1725270183686,0.000816,58194.0,58193.0,1.39607428]
[1725270183903,0.000816,58194.0,58193.0,1.39407428]
[1725270184138,0.000816,58194.0,58193.0,1.38207428]
[1725270184365,0.000816,58194.0,58193.0,1.39207428]
[1725270184603,0.000816,58194.0,58193.0,1.41107428]
[1725270184829,0.000816,58194.0,58193.0,1.15649628]
[1725270185265,0.000816,58194.0,58193.0,1.41607428]
[1725270185483,0.000816,58194.0,58193.0,1.40207428]
[1725270185723,0.000816,58194.0,58193.0,1.39007428]
[1725270185943,0.000816,58194.0,58193.0,1.40407428]
[1725270186163,0.000816,58194.0,58193.0,1.40207428]
[1725270186388,0.000816,58194.0,58193.0,1.41807428]
[1725270186613,0.000816,58194.0,58193.0,1.40207428]
[1725270186853,0.000816,58194.0,58193.0,1.40297078]
[1725270187086,0.000816,58194.0,58193.0,1.16239278]
[1725270187515,0.000816,58194.0,58193.0,1.15739278]
[1725270188165,0.000816,58194.0,58193.0,1.17139278]
[1725270189697,0.000816,58194.0,58193.0,1.41697078]
[1725270191483,0.000816,58194.0,58193.0,1.41897078]
[1725270196733,0.000816,58194.0,58193.0,1.41697078]
[1725270196955,0.000816,58194.0,58193.0,1.41897078]
[1725270197657,0.000816,58194.0,58193.0,1.41797078]
[1725270197879,0.000816,58194.0,58193.0,1.41897078]
[1725270198106,0.000816,58194.0,58193.0,1.41697078]
[1725270198333,0.000816,58194.0,58193.0,1.41897078]
[1725270199463,0.000816,58194.0,58193.0,1.47017175]
[1725270199697,0.000816,58194.0,58193.0,1.47019499]
[1725270199917,0.000816,58194.0,58193.0,1.41897078]
[1725270200140,0.000816,58194.0,58193.0,1.65954878]
[1725270200356,0.000816,58194.0,58193.0,1.73637624]
[1725270200578,0.000816,58194.0,58193.0,1.76195072]
[1725270200802,0.000816,58194.0,58193.0,1.73640136]
[1725270201273,0.000816,58194.0,58193.0,1.65954878]
[1725270201489,0.000816,58194.0,58193.0,1.73639839]
[1725270202147,0.000816,58194.0,58193.0,1.49582039]
[1725270202395,0.000816,58194.0,58193.0,1.41897078]
[1725270203085,0.000816,58194.0,58193.0,1.47020059]
[1725270203748,0.000816,58194.0,58193.0,1.41897078]
[1725270204001,0.000816,58194.0,58193.0,1.46819648]
[1725270204218,0.000816,58194.0,58193.0,1.14839278]
[1725270205155,0.000816,58194.0,58193.0,1.15039278]
[1725270205624,0.000816,58194.0,58193.0,1.17139278]
[1725270206306,0.000816,58194.0,58193.0,1.17339278]
[1725270208076,0.000816,58194.0,58193.0,1.17139278]
[1725270208516,0.000816,58194.0,58193.0,1.17339278]
[1725270209417,0.000816,58194.0,58193.0,1.17139278]
[1725270210540,0.000816,58194.0,58193.0,1.17839278]
[1725270210785,0.000816,58194.0,58193.0,1.22962089]
[1725270211018,0.000816,58194.0,58193.0,1.22762089]
[1725270211249,0.000816,58194.0,58193.0,1.22262089]
[1725270211476,0.000816,58194.0,58193.0,1.17139278]
[1725270211694,0.000816,58194.0,58193.0,1.17639278]
[1725270212157,0.000816,58194.0,58193.0,1.22762089]
[1725270212382,0.000816,58194.0,58193.0,1.17139278]
[1725270213056,0.000816,58194.0,58193.0,1.17639278]
[1725270213495,0.000816,58194.0,58193.0,1.17139278]
[1725270213711,0.000816,58194.0,58193.0,1.22262089]
[1725270214598,0.000816,58194.0,58193.0,1.24823495]
[1725270215475,0.120254,58210.0,58197.0,0.240561]
[1725270215697,0.120251,58212.0,58206.0,0.120262]
[1725270215916,0.248633,58216.0,58206.0,0.120262]
[1725270215917,0.120252,58211.0,58206.0,0.120262]
[1725270216368,0.120254,58210.0,58201.0,0.240542]
[1725270216654,0.00815,58216.0,58204.0,0.0746]
[1725270216904,0.00815,58216.0,58213.0,0.120246]
[1725270217133,0.00815,58216.0,58215.0,0.120243]
[1725270217575,0.0351042,58216.0,58215.0,0.120243]
[1725270218571,0.0351042,58216.0,58215.0,0.36073]
[1725270218819,0.0351042,58216.0,58215.0,0.36473]
[1725270219060,0.0351042,58216.0,58215.0,0.36873]
[1725270219316,0.0351042,58216.0,58215.0,0.53623]
[1725270219570,0.0351042,58216.0,58215.0,1.117204]
[1725270220048,0.00815,58227.0,58215.0,0.2775]
[1725270220309,0.02694724,58241.0,58239.0,0.0937]
[1725270220576,0.02694724,58241.0,58240.0,0.36400736]
[1725270220820,0.128321,58250.0,58243.0,0.120184]
[1725270221583,0.012,58249.0,58236.0,0.1]
[1725270221586,0.00815,58250.0,58244.0,0.00343365]
[1725270221588,0.00815,58250.0,58249.0,0.36052]
[1725270221855,0.00815,58250.0,58249.0,0.120173]
[1725270222378,0.00815,58250.0,58249.0,0.60430017]
[1725270222634,0.00815,58250.0,58249.0,0.36052]
[1725270222915,0.03508753,58250.0,58249.0,0.37452]
[1725270223184,0.03508753,58250.0,58249.0,0.134173]
[1725270223690,0.03508753,58250.0,58249.0,0.47032]
[1725270223919,0.03508753,58250.0,58249.0,0.710667]
[1725270224401,0.03508753,58250.0,58249.0,0.37452]
[1725270224643,0.03508753,58250.0,58249.0,0.628867]
[1725270224862,0.03508753,58250.0,58249.0,0.38852]
[1725270225572,0.03508753,58250.0,58249.0,0.148173]
[1725270226307,0.03508753,58250.0,58249.0,0.120173]
[1725270226527,0.03508753,58250.0,58249.0,0.37452]
[1725270227034,0.03508753,58250.0,58249.0,0.134173]
[1725270227263,0.00815,58250.0,58249.0,0.134173]
[1725270227752,0.00815,58250.0,58249.0,0.148173]
[1725270228238,0.00815,58250.0,58249.0,0.134173]
[1725270228499,0.00815,58250.0,58249.0,0.120173]
[1725270228741,0.00815,58250.0,58249.0,0.014]
[1725270228979,0.00815,58250.0,58249.0,0.028]
[1725270229241,0.00815,58250.0,58249.0,0.148173]
[1725270229744,0.240312,58258.0,58249.0,0.028]
[1725270229986,0.120171,58250.0,58249.0,0.028]
[1725270230237,0.120165,58254.0,58249.0,0.028]
[1725270230495,0.02693876,58250.0,58249.0,0.148172]
[1725270230740,0.02693876,58250.0,58249.0,0.134172]
[1725270230968,0.02693876,58250.0,58249.0,0.146172]
[1725270231442,0.02693876,58250.0,58249.0,0.468419]
[1725270231950,0.02693876,58250.0,58249.0,1.037513]
[1725270232183,0.47,58269.0,58255.0,0.002]
[1725270232440,0.00816,58275.0,58274.0,0.120122]
[1725270232675,0.00816,58275.0,58265.0,0.0886]
[1725270232676,0.00816,58275.0,58267.0,0.005]
[1725270232912,0.240245,58274.0,58266.0,0.1]
[1725270233156,0.120126,58272.0,58265.0,0.1]
[1725270233383,0.120127,58272.0,58265.0,0.1]
[1725270233616,0.120127,58272.0,58266.0,0.120138]
[1725270233841,0.120122,58274.0,58267.0,0.120136]
[1725270234087,0.00816,58275.0,58269.0,0.120131]
[1725270234338,0.00816,58275.0,58267.0,0.24027]
[1725270234339,0.00816,58275.0,58273.0,0.120123]
[1725270234781,0.00816,58275.0,58270.0,0.24369192]
[1725270234782,0.00816,58275.0,58271.0,0.120127]
[1725270235462,0.00816,58275.0,58273.0,0.011]
[1725270235748,0.03508844,58275.0,58273.0,0.011]
[1725270235979,0.03508844,58275.0,58273.0,0.022]
[1725270236240,0.03508844,58275.0,58273.0,0.011]
[1725270236713,0.03508844,58275.0,58273.0,0.120123]
[1725270236946,0.03508844,58275.0,58274.0,0.120122]
[1725270237184,0.03508844,58275.0,58274.0,0.360366]
[1725270238870,0.03508844,58275.0,58274.0,0.022]
[1725270239123,0.15520844,58275.0,58274.0,0.022]
[1725270239381,0.03508844,58275.0,58274.0,0.022]
[1725270239644,0.36852,58275.0,58274.0,0.022]
[1725270239894,0.849,58275.0,58274.0,0.022]
[1725270240646,0.849,58275.0,58274.0,0.011]
[1725270240878,0.849,58275.0,58257.0,0.50540786]
[1725270240879,0.120155,58258.0,58257.0,0.50540786]
[1725270241104,0.50004234,58258.0,58257.0,0.50540786]
[1725270241360,0.24032,58256.0,58247.0,0.120177]
[1725270241596,0.120164,58254.0,58247.0,0.120177]
[1725270241841,0.120164,58254.0,58248.0,0.120175]
[1725270242091,0.37988734,58258.0,58247.0,0.240355]
[1725270242092,0.13957734,58258.0,58247.0,0.240355]
[1725270242324,0.240287,58264.0,58257.0,0.121156]
[1725270242325,0.13957734,58262.0,58257.0,0.121156]
[1725270242605,0.120149,58261.0,58257.0,0.001]
[1725270242833,0.240301,58261.0,58247.0,0.0986]
[1725270243069,0.13957734,58254.0,58247.0,0.008]
[1725270243309,0.120171,58250.0,58247.0,0.008]
[1725270243562,0.13957734,58254.0,58247.0,0.008]
[1725270243783,0.120165,58253.0,58247.0,0.008]
[1725270244009,0.25927624,58254.0,58247.0,0.005]
[1725270244227,0.02693665,58253.0,58249.0,0.120172]
[1725270244453,0.02693665,58253.0,58252.0,0.120167]
[1725270245171,0.02693665,58253.0,58252.0,0.213067]
[1725270245411,0.02693665,58253.0,58252.0,0.453402]
[1725270245660,0.02693665,58253.0,58252.0,0.213067]
[1725270245898,0.02693665,58253.0,58252.0,0.467402]
[1725270246147,0.02793665,58253.0,58252.0,0.028]
[1725270247115,0.02793665,58253.0,58252.0,0.134167]
[1725270247577,0.02693665,58253.0,58252.0,0.374502]
[1725270248006,0.02793665,58253.0,58252.0,0.125167]
[1725270248232,0.02793665,58253.0,58252.0,0.365502]
[1725270248478,0.02793665,58253.0,58252.0,0.019]
[1725270248692,0.02793665,58253.0,58252.0,0.139167]
[1725270249588,0.02793665,58253.0,58252.0,0.379502]
[1725270250045,0.02793665,58253.0,58252.0,0.785237]
[1725270250527,0.02793665,58253.0,58252.0,1.025572]
[1725270250766,0.00816,58275.0,58274.0,0.526766]
[1725270251270,0.00816,58275.0,58274.0,0.76701]
[1725270251504,0.00816,58275.0,58274.0,0.76601]
[1725270251729,0.00816,58275.0,58274.0,0.86601]
[1725270251976,0.00816,58275.0,58274.0,0.220122]
[1725270252254,0.00916,58275.0,58274.0,0.47779782]
[1725270252490,0.00916,58275.0,58274.0,0.72861]
[1725270252737,0.00816,58275.0,58274.0,0.014]
[1725270252965,0.00816,58275.0,58274.0,0.028]
[1725270252966,0.36952,58275.0,58274.0,0.028]
[1725270253713,0.60976,58275.0,58274.0,0.028]
[1725270253939,0.36952,58275.0,58274.0,0.028]
[1725270254169,0.60976,58275.0,58274.0,0.028]
[1725270254393,0.120127,58272.0,58265.0,0.120139]
[1725270254615,0.120127,58272.0,58259.0,0.0915]
[1725270254616,0.240252,58272.0,58259.0,0.0915]
[1725270254843,0.240252,58272.0,58262.0,0.120146]
[1725270255099,0.00816,58275.0,58255.0,0.0921]
[1725270255100,0.13957734,58268.0,58255.0,0.0921]
[1725270255343,0.240294,58262.0,58253.0,0.0748]
[1725270255571,0.120154,58259.0,58253.0,0.194965]
[1725270255836,0.120154,58259.0,58254.0,0.120163]
[1725270256066,0.120164,58254.0,58247.0,0.0756965]
[1725270256294,0.13957734,58257.0,58247.0,0.0756965]
[1725270256517,0.25973434,58257.0,58256.0,0.014]
[1725270256754,0.50004834,58257.0,58256.0,0.014]
[1725270257216,0.25973434,58257.0,58256.0,0.014]
[1725270257699,0.13957734,58261.0,58256.0,0.001]
[1725270257928,0.13957734,58261.0,58254.0,0.240326]
[1725270257929,0.25972734,58261.0,58255.0,0.12016]
[1725270258151,0.12015,58261.0,58255.0,0.12016]
[1725270258373,0.120145,58263.0,58256.0,0.130158]
[1725270258622,0.120145,58263.0,58257.0,0.120156]
[1725270258966,0.120137,58267.0,58260.0,0.120149]
[1725270259056,0.17384172,58271.0,58257.0,0.0944]
[1725270259309,0.120122,58274.0,58268.0,0.120133]
[1725270259580,0.240249,58273.0,58264.0,0.0717]
[1725270259827,0.12828,58275.0,58269.0,0.120132]
[1725270260046,0.00816,58275.0,58270.0,0.120129]
[1725270260312,0.12828,58275.0,58270.0,0.120129]
[1725270260568,0.12828,58275.0,58268.0,0.120133]
[1725270260569,0.00816,58275.0,58268.0,0.120133]
[1725270260782,0.120126,58272.0,58267.0,0.120136]
[1725270261008,0.120123,58274.0,58267.0,0.120136]
[1725270261234,0.248401,58275.0,58268.0,0.004]
[1725270261474,0.120128,58271.0,58268.0,0.004]
[1725270261696,0.120128,58271.0,58265.0,0.120139]
[1725270261940,0.120124,58273.0,58268.0,0.001]
[1725270262167,0.00816,58275.0,58268.0,0.001]
[1725270262385,0.120125,58273.0,58268.0,0.001]
[1725270262844,0.120125,58273.0,58267.0,0.120136]
[1725270263075,0.120125,58273.0,58268.0,0.120134]
[1725270263561,0.120125,58273.0,58264.0,0.311984]
[1725270263562,0.00816,58275.0,58267.0,0.120135]
[1725270264080,0.02693061,58272.0,58268.0,0.120132]
[1725270264559,0.14705761,58272.0,58266.0,0.120138]
[1725270264784,0.14705761,58272.0,58267.0,0.001]
[1725270264999,0.120128,58271.0,58267.0,0.001]
[1725270265277,0.60066,58269.0,58268.0,0.005]
[1725270265512,0.61676,58269.0,58268.0,0.009]
[1725270265729,0.61676,58269.0,58258.0,0.120154]
[1725270265730,0.120143,58264.0,58258.0,0.120154]
[1725270265966,0.02693061,58272.0,58263.0,0.240285]
[1725270266209,0.0004,58279.0,58270.0,0.24026]
[1725270266450,0.0004,58279.0,58267.0,0.004]
[1725270266451,0.120127,58272.0,58267.0,0.004]
[1725270266708,0.2484,58275.0,58267.0,0.004]
[1725270266709,0.00816,58275.0,58267.0,0.004]
[1725270266929,0.240244,58274.0,58268.0,0.002]
[1725270267180,0.120129,58271.0,58268.0,0.002]
[1725270267433,0.00816,58275.0,58268.0,0.002]
[1725270267652,0.120126,58272.0,58268.0,0.002]
[1725270267887,0.240244,58274.0,58268.0,0.002]
[1725270267888,0.120123,58274.0,58268.0,0.002]
[1725270268128,0.240246,58274.0,58268.0,0.002]
[1725270268351,0.240246,58274.0,58267.0,0.120136]
[1725270268782,0.120128,58272.0,58266.0,0.120137]
[1725270269003,0.120128,58272.0,58267.0,0.120135]
[1725270269258,0.120128,58272.0,58267.0,0.127135]
[1725270269466,0.240246,58274.0,58267.0,0.007]
[1725270269686,0.00816,58275.0,58268.0,0.005]
[1725270269687,0.120132,58269.0,58268.0,0.005]
[1725270269900,0.120132,58269.0,58262.0,0.0723]
[1725270270110,0.120132,58269.0,58266.0,0.007]
[1725270270343,0.136235,58268.0,58266.0,0.007]
[1725270270640,0.120135,58268.0,58266.0,0.007]
[1725270270866,0.24026,58271.0,58266.0,0.007]
[1725270270867,0.360409,58267.0,58266.0,0.007]
[1725270271340,0.17384172,58269.0,58258.0,0.120154]
[1725270271341,0.240282,58265.0,58258.0,0.120154]
[1725270271574,0.120145,58263.0,58259.0,0.01907851]
[1725270271822,0.120145,58263.0,58258.0,0.120154]
[1725270272059,0.120157,58257.0,58256.0,0.0008965]
[1725270272326,0.360471,58257.0,58256.0,0.0008965]
[1725270272567,0.616885,58257.0,58256.0,0.0008965]
[1725270272814,0.857199,58257.0,58256.0,0.0008965]
[1725270273047,1.03104072,58257.0,58256.0,0.0008965]
[1725270273497,1.56744972,58257.0,58256.0,0.0128965]
[1725270273725,1.59438829,58257.0,58256.0,0.0128965]
[1725270274649,1.59438829,58257.0,58256.0,0.0008965]
[1725270275124,1.05797929,58257.0,58256.0,0.0008965]
[1725270275353,0.80256529,58257.0,58256.0,0.0008965]
[1725270275591,0.80256529,58257.0,58256.0,0.0108965]
[1725270275805,1.04287929,58257.0,58256.0,0.0108965]
[1725270276018,1.04287929,58257.0,58256.0,0.0008965]
[1725270276243,1.04587929,58257.0,58256.0,0.0008965]
[1725270276466,1.04587929,58257.0,58244.0,0.120182]
[1725270276467,0.120173,58250.0,58244.0,0.120182]
[1725270276683,0.120173,58250.0,58245.0,0.120181]
[1725270277153,0.17484172,58257.0,58245.0,0.120181]
[1725270277154,0.240328,58254.0,58245.0,0.12018]
[1725270277369,0.120172,58250.0,58245.0,0.12018]
[1725270277596,0.17384172,58247.0,58241.0,0.0752]
[1725270278304,0.17384172,58242.0,58235.0,0.0703]
[1725270278512,0.245319,58256.0,58229.0,0.1636]
[1725270278513,0.120206,58234.0,58229.0,0.1636]
[1725270278754,0.120206,58233.0,58229.0,0.1636]
[1725270279219,0.17384172,58236.0,58229.0,0.1636]
[1725270279450,0.120193,58240.0,58234.0,0.120204]
[1725270279703,0.120194,58239.0,58234.0,0.120202]
[1725270279926,0.120192,58240.0,58235.0,0.130201]
[1725270280158,0.24038,58241.0,58233.0,0.119205]
[1725270280376,0.120193,58240.0,58234.0,0.120204]
[1725270280850,0.120183,58245.0,58240.0,0.120191]
[1725270281065,0.240355,58247.0,58240.0,0.120192]
[1725270281303,0.240355,58247.0,58235.0,0.1670342]
[1725270281304,0.120179,58247.0,58241.0,0.120189]
[1725270281556,0.120174,58249.0,58240.0,0.240383]
[1725270281783,0.02694223,58246.0,58243.0,0.120185]
[1725270282007,0.02694223,58246.0,58241.0,0.0891]
[1725270282229,0.02694223,58246.0,58243.0,0.120185]
[1725270282940,0.14812223,58246.0,58243.0,0.008]
[1725270283158,0.120182,58245.0,58243.0,0.008]
[1725270283412,0.120182,58245.0,58241.0,0.0881]
[1725270283413,0.120187,58243.0,58241.0,0.0881]
[1725270283640,0.360553,58244.0,58243.0,0.006]
[1725270283869,0.120182,58245.0,58238.0,0.120195]
[1725270284103,0.02694223,58246.0,58228.0,0.50540786]
[1725270284325,0.240365,58245.0,58232.0,0.240415]
[1725270284543,0.120188,58242.0,58234.0,0.240409]
[1725270284792,0.120187,58243.0,58238.0,0.120196]
[1725270285221,0.120187,58243.0,58234.0,0.240409]
[1725270285222,0.120187,58243.0,58239.0,0.0873]
[1725270286765,0.120187,58243.0,58239.0,0.0993]
[1725270287420,0.120192,58240.0,58239.0,0.0993]
[1725270287639,0.120188,58242.0,58239.0,0.0993]
[1725270288095,0.120184,58244.0,58239.0,0.1133]
[1725270288316,0.17384172,58251.0,58239.0,0.1133]
[1725270288317,0.120192,58241.0,58239.0,0.1133]
[1725270288578,0.24036,58246.0,58239.0,0.0873]
[1725270288789,0.120187,58243.0,58239.0,0.1153]
[1725270289007,0.120187,58243.0,58239.0,0.1013]
[1725270289234,0.120188,58242.0,58239.0,0.0873]
[1725270289459,0.120192,58240.0,58239.0,0.014]
[1725270289673,0.17384172,58250.0,58239.0,0.014]
[1725270289972,0.120182,58245.0,58240.0,0.0916]
[1725270290189,0.41418472,58250.0,58240.0,0.0916]
[1725270290190,0.120186,58243.0,58240.0,0.0916]
[1725270290421,0.240374,58243.0,58240.0,0.0916]
[1725270290850,0.12019,58241.0,58240.0,0.0916]
[1725270291067,0.36056,58243.0,58240.0,0.0916]
[1725270291284,0.02694309,58244.0,58240.0,0.0916]
[1725270291721,0.14712809,58244.0,58240.0,0.0916]
[1725270291939,0.120186,58243.0,58240.0,0.0916]
[1725270292154,0.120186,58243.0,58240.0,0.1056]
[1725270292375,0.120186,58243.0,58240.0,0.0916]
[1725270292810,0.02694309,58244.0,58240.0,0.1196]
[1725270293034,0.120188,58243.0,58240.0,0.1056]
[1725270293255,0.02694309,58244.0,58240.0,0.225791]
[1725270293469,0.001,58243.0,58240.0,0.239791]
[1725270293692,0.02694309,58244.0,58240.0,0.225791]
[1725270294124,0.02694309,58244.0,58240.0,0.211791]
[1725270294589,0.001,58243.0,58240.0,0.225791]
[1725270294809,0.001,58243.0,58241.0,0.12019]
[1725270295046,0.02694309,58244.0,58240.0,0.1056]
[1725270295047,0.02775809,58244.0,58242.0,0.120187]
[1725270295268,0.02775809,58244.0,58243.0,0.120186]
[1725270295495,0.02875809,58244.0,58241.0,0.360567]
[1725270295706,0.02875809,58244.0,58241.0,0.120188]
[1725270295931,0.14794209,58244.0,58240.0,0.1056]
[1725270296158,0.121186,58243.0,58241.0,0.014]
[1725270296599,0.001,58243.0,58241.0,0.134189]
[1725270297024,0.001,58243.0,58241.0,0.014]
[1725270297490,0.000815,58244.0,58240.0,0.225791]
[1725270297707,0.000815,58244.0,58241.0,0.014]
[1725270297708,0.120999,58244.0,58241.0,0.014]
[1725270298164,0.000815,58244.0,58241.0,0.014]
[1725270299294,0.121,58244.0,58241.0,0.014]
[1725270299509,0.000815,58244.0,58241.0,0.028]
[1725270300400,0.02775998,58244.0,58241.0,0.028]
[1725270300619,0.02775998,58244.0,58241.0,0.014]
[1725270300837,0.02775998,58244.0,58241.0,0.028]
[1725270301054,0.02775998,58244.0,58241.0,0.148189]
[1725270301291,0.000815,58244.0,58242.0,0.0735]
[1725270301976,0.000815,58244.0,58242.0,0.193688]
[1725270302208,0.000815,58244.0,58243.0,0.360558]
[1725270302436,0.000815,58244.0,58243.0,0.120186]
[1725270303111,0.000815,58244.0,58243.0,0.360558]
[1725270304261,0.000815,58244.0,58243.0,0.134186]
[1725270304471,0.842103,58244.0,58243.0,0.014]
[1725270304699,0.601735,58244.0,58243.0,0.014]
[1725270304917,0.000815,58244.0,58243.0,0.014]
[1725270305610,0.601735,58244.0,58243.0,0.024]
[1725270305850,0.361367,58244.0,58243.0,0.01]
[1725270306072,0.000815,58244.0,58243.0,0.01]
[1725270306573,0.241183,58244.0,58243.0,0.01]
[1725270306814,0.601735,58244.0,58243.0,0.01]
[1725270307036,0.120192,58240.0,58239.0,0.0008965]
[1725270308196,0.120192,58240.0,58239.0,0.0088965]
[1725270308424,0.001,58240.0,58239.0,0.0088965]
[1725270308926,0.121192,58240.0,58239.0,0.0088965]
[1725270309401,0.001,58240.0,58239.0,0.0088965]
[1725270309667,0.001,58240.0,58239.0,0.0148965]
[1725270311961,0.02794689,58240.0,58239.0,0.1007565]
[1725270312446,0.14813889,58240.0,58239.0,0.1007565]
[1725270312681,0.38852289,58240.0,58239.0,0.1007565]
[1725270314574,0.14813889,58240.0,58239.0,0.1007565]
[1725270314799,0.38852289,58240.0,58239.0,0.1007565]
[1725270316197,0.7680714,58240.0,58239.0,0.1007565]
[1725270316416,1.0084554,58240.0,58239.0,0.1007565]
[1725270316891,1.7583994,58240.0,58239.0,0.1007565]
[1725270317123,1.4427844,58240.0,58239.0,0.1007565]
[1725270317374,1.4447844,58240.0,58239.0,0.1007565]
[1725270317844,1.4437844,58240.0,58239.0,0.0927565]